fUSD/lending_fUSD_20251206
["ID","MTS","AMOUNT","RATE_DAILY","PERIOD"]
[396531799,1765039844346,-3119.33276107,0.00015969,2]
[396531800,1765039844357,-19950.89659433,0.00015969,2]
[396531801,1765039844368,-231118.19273043,0.00015969,2]
[396531802,1765039844377,-1251.0970065,0.00015969,2]
[396531803,1765039844387,-218.84178791,0.00015974,2]
[396531804,1765039844397,-1000.0,0.0001598,2]
[396531805,1765039844406,-1000.0,0.00015988,2]
[396531806,1765039844416,-542.0,0.00015991,2]
[396531807,1765039844425,-1000.0,0.00015996,2]
[396531808,1765039844435,-1000.0,0.00015999,3]
[396531809,1765039844444,-1000.0,0.00016005,2]
[396531810,1765039844454,-150.0,0.00016009,2]
[396531811,1765039844463,-150.0,0.00016029,2]
[396531812,1765039844472,-5814.3802,0.0001604,2]
[396531813,1765039844481,-2702.3712327,0.0001604,2]
[396531814,1765039844491,-1000.0,0.00016047,2]
[396531815,1765039844500,-500.0,0.00016056,2]
[396531816,1765039844510,-1000.0,0.00016057,2]
[396531817,1765039844520,-1500.0,0.00016068,2]
[396531818,1765039844529,-1500.0,0.00016068,2]
[396531819,1765039844538,-307.0223487,0.00016068,2]
[396531820,1765039844547,-1000.0,0.0001607,2]
[396531821,1765039844557,-1000.0,0.00016078,2]
[396531822,1765039844567,-1802.74039853,0.00016095,2]
[396531823,1765039844577,-150.0,0.00016113,2]
[396531824,1765039844587,-9999.99,0.00016116,2]
[396531825,1765039844596,-1323.0,0.00016119,2]
[396531826,1765039844606,-3446.0,0.00016119,2]
[396531827,1765039844884,-611.0,0.00016119,2]
[396531828,1765039844893,-1605.0,0.00016119,2]
[396531829,1765039844904,-614.0,0.00016119,2]
[396531830,1765039844915,-1259.0,0.00016119,2]
[396531831,1765039844924,-253.0,0.00016119,2]
[396531832,1765039844933,-562.0,0.00016119,2]
[396531833,1765039844943,-6513.0,0.00016119,2]
[396531834,1765039844952,-4707.0,0.00016119,2]
[396531835,1765039844961,-150.0,0.00016125,2]
[396531836,1765039844970,-542.0,0.00016134,2]
[396531837,1765039844980,-153.91398521,0.00016158,2]
[396531838,1765039844990,-294.435,0.00016164,2]
[396531839,1765039844999,-2450.0,0.00016164,2]
[396531840,1765039845008,-5814.38021,0.0001617,2]
[396531841,1765039845018,-505.52202945,0.00016181,2]
[396531842,1765039845027,-1000.0,0.00016196,2]
[396531843,1765039845036,-1000.0,0.00016199,3]
[396531844,1765039845046,-22670.61761154,0.000162,5]
[396531845,1765039845055,-200.0,0.000162,2]
[396531846,1765039845064,-160.27,0.00016219,2]
[396531847,1765039845073,-166.66,0.00016225,2]
[396531848,1765039845082,-168.0,0.00016242,2]
[396531849,1765039845091,-500.0,0.00016248,2]
[396531850,1765039845101,-500.0,0.00016249,2]
[396531851,1765039845110,-1000.0,0.0001629,2]
[396531852,1765039845120,-500.0,0.00016301,2]
[396531853,1765039845129,-1802.74039853,0.0001632,2]
[396531854,1765039845138,-493.23465483,0.00016338,2]
[396531855,1765039845148,-200.0,0.00016362,2]
[396531856,1765039845160,-168.0,0.00016364,2]
[396531857,1765039845169,-542.0,0.00016378,2]
[396531858,1765039845180,-5814.38021,0.0001642,2]
[396531859,1765039845189,-409.0,0.00016426,2]
[396531860,1765039845198,-500.0,0.00016438,2]
[396531861,1765039845208,-500.0,0.00016438,2]
[396531862,1765039845217,-500.0,0.00016438,2]
[396531863,1765039845226,-353.50803046,0.00016438,2]
[396531864,1765039845235,-500.0,0.00016438,2]
[396531865,1765039845244,-500.0,0.00016438,2]
[396531866,1765039845253,-1849.11,0.00016438,2]
[396531867,1765039845263,-1849.11,0.00016438,2]
[396531868,1765039845272,-1849.11,0.00016438,2]
[396531869,1765039845281,-35302.34,0.00016438,2]
[396531870,1765039845290,-1000.0,0.00016438,2]
[396531871,1765039845299,-4961.59208779,0.00016438,2]
[396531873,1765039846932,-286.626815,0.00015678,2]
[396531874,1765039846943,-1012.0,0.00015678,2]
[396531875,1765039846959,-3962.47676942,0.00015678,2]
[396531876,1765039846969,-581.91308058,0.00016438,2]
[396531877,1765039846980,-4318.35366,0.00016438,2]
[396531878,1765039847010,-278.49999995,0.00016438,2]
[396531881,1765039851475,521.44848155,0.00012999,2]
[396531884,1765039852083,266.5912681,0.00012999,2]
[396531885,1765039854404,500.0,0.00012999,2]
[396531886,1765039855195,418.5525929,0.00012999,2]
[396531952,1765039903851,-377.91167545,0.000128,2]
[396531953,1765039906502,-151.901771,0.00012795,2]
[396531954,1765039910335,-284.84393021,0.00012795,2]
[396531956,1765039931917,-58.29090126,0.00012795,2]
[396531957,1765039931939,-122.08832455,0.000128,2]
[396531958,1765039931960,-70.49808933,0.000129,2]
[396531959,1765039935394,-434.60624532,0.000129,2]
[396531961,1765039938323,-294.24846006,0.000129,2]
[396531962,1765039938820,-200.64720529,0.000129,2]
[396531963,1765039938891,-7892.12324687,0.000129,2]
[396531964,1765039940464,-205.18317373,0.000129,2]
[396531973,1765039943177,-239.87464105,0.000129,2]
[396531976,1765039944948,-10000.01,0.000129,2]
[396531977,1765039945120,-182.39214766,0.000129,2]
[396531978,1765039946584,-154.04791848,0.000129,2]
[396531979,1765039949961,-233.92044681,0.000129,2]
[396531980,1765039951926,-163.55993386,0.000129,2]
[396531997,1765039953846,-266.07955319,0.000129,2]
[396532013,1765039955316,-197.48518469,0.000129,2]
[396532055,1765039956980,-225.26445219,0.00012835,2]
[396532060,1765039958714,-388.42538281,0.00012835,2]
[396532061,1765039958740,-111.57461719,0.000129,2]
[396532064,1765039960208,-234.4967381,0.00012899,2]
[396532065,1765039960232,-186.61388767,0.00012899,2]
[396532066,1765039960260,-56.66343029,0.00012899,2]
[396532067,1765039962286,-308.3505068,0.00012899,2]
[396532068,1765039962314,-213.87543714,0.000129,2]
[396532088,1765039965931,-335.10839793,0.000129,2]
[396532136,1765039968568,-227.77791142,0.000129,2]
[396532137,1765039970727,-183.73630912,0.000129,2]
[396532138,1765039975816,-212.70378816,0.000129,2]
[396532141,1765039979173,-303.37034712,0.00012899,2]
[396532142,1765039980724,-195.7641087,0.00012899,2]
[396532144,1765039983489,-166.66,0.00012899,2]
[396532148,1765039987171,-534.20554418,0.00012899,2]
[396532149,1765039987199,-84.82860308,0.00012899,2]
[396532151,1765039990899,-199.94589507,0.00012899,2]
[396532153,1765039992903,-215.22550185,0.00012899,2]
[396532154,1765039992929,-1.66773781,0.00012899,2]
[396532155,1765039994684,-307.25812707,0.00012899,2]
[396532156,1765039996599,-191.07413512,0.00012899,2]
[396532157,1765039996626,-284.07342652,0.000129,2]
[396532158,1765039997869,-215.18826483,0.000129,2]
[396532166,1765040001913,-474.83166038,0.000129,2]
[396532173,1765040004314,-306.41849889,0.000129,2]
[396532176,1765040007966,-239.81223451,0.00012899,2]
[396532178,1765040009164,-200.45362261,0.00012899,2]
[396532179,1765040011493,1000.0,0.00022,30]
[396532180,1765040012950,-59.73414288,0.00012899,2]
[396532181,1765040012974,-203.97956814,0.00012899,2]
[396532182,1765040015679,-296.02043186,0.00012899,2]
[396532183,1765040015707,-3.97956814,0.000129,2]
[396532185,1765040018414,-441.00027961,0.000129,2]
[396532186,1765040019947,-285.89067237,0.000129,2]
[396532187,1765040023113,-255.08896124,0.000129,2]
[396532189,1765040024667,-191.70548187,0.000129,2]
[396532192,1765040026815,-234.94613277,0.000129,2]
[396532196,1765040028514,1000.0,0.00022,30]
[396532197,1765040029035,-151.901771,0.000129,2]
[396532198,1765040031377,-190.84913213,0.00012835,2]
[396532200,1765040034074,-270.81762869,0.00012835,2]
[396532201,1765040036146,-340.47051123,0.00012835,2]
[396532202,1765040036980,2000.0,0.00025,120]
[396532204,1765040042376,-13.70916995,0.00012835,2]
[396532205,1765040042398,-300.0,0.00012899,2]
[396532206,1765040042419,-150.0,0.00012899,2]
[396532208,1765040042447,-26.60565814,0.000129,2]
[396532210,1765040043831,-262.0,0.00012899,2]
[396532211,1765040043861,-137.89700002,0.000129,2]
[396532212,1765040045382,-167.83434139,0.000129,2]
[396532213,1765040046925,-279.17409837,0.000129,2]
[396532215,1765040050369,-238.41567428,0.000129,2]
[396532216,1765040050955,3466.81443714,0.00025,120]
[396532217,1765040053665,-200.05410493,0.000129,2]
[396532218,1765040055778,-201.87060074,0.000129,2]
[396532222,1765040057358,-192.20605961,0.000129,2]
[396532227,1765040058770,-242.22332319,0.000129,2]
[396532232,1765040060706,-220.67852546,0.000129,2]
[396532233,1765040062835,-304.2358913,0.00012899,2]
[396532236,1765040064924,-152.54113406,0.00012899,2]
[396532237,1765040066333,-43.22297464,0.00012899,2]
[396532238,1765040066360,-256.77702536,0.00012899,2]
[396532239,1765040069043,-243.22297464,0.00012899,2]
[396532240,1765040069066,-38.51912546,0.00012899,2]
[396532289,1765040083764,-165.24586608,0.000128,2]
[396532290,1765040083799,-461.48087454,0.00012899,2]
[396532291,1765040083835,-631.00223715,0.00012899,2]
[396532292,1765040083929,-7484.55204446,0.000129,2]
[396532293,1765040085291,-173.83212966,0.000129,2]
[396532294,1765040086827,-349.80059099,0.000129,2]
[396532296,1765040090099,-228.07085918,0.000129,2]
[396532297,1765040090795,-10000.01,0.000129,2]
[396532298,1765040093030,-277.41700354,0.000129,2]
[396532299,1765040094083,-305.73905144,0.000129,2]
[396532300,1765040096549,-384.07240903,0.000129,2]
[396532301,1765040098072,-275.59129947,0.000129,2]
[396532302,1765040099957,-200.0,0.000129,2]
[396532304,1765040101568,-237.1396528,0.00012899,2]
[396532306,1765040104255,-62.8603472,0.00012899,2]
[396532307,1765040104278,-179.30878635,0.00012899,2]
[396532308,1765040105896,-120.69121365,0.00012899,2]
[396532309,1765040105922,-135.84051591,0.00012899,2]
[396532310,1765040107514,-192.90349135,0.00012899,2]
[396532311,1765040109585,-156.09342791,0.00012899,2]
[396532312,1765040111188,-309.5273206,0.00012899,2]
[396532313,1765040113748,-258.43415931,0.00012834,2]
[396532317,1765040115204,-245.76106695,0.00012834,2]
[396532318,1765040116844,-224.11394376,0.00012834,2]
[396532320,1765040118988,-166.27444294,0.00012834,2]
[396532321,1765040120571,-300.0,0.00012834,2]
[396532322,1765040123167,-528.20376854,0.00012834,2]
[396532323,1765040125843,-300.0,0.000128,2]
[396532325,1765040127661,-289.8175195,0.000128,2]
[396532326,1765040129196,-435.47138461,0.000128,2]
[396532327,1765040131258,-159.29900526,0.000128,2]
[396532329,1765040133858,-294.55941031,0.000128,2]
[396532330,1765040136040,-300.47335145,0.000128,2]
[396532331,1765040138343,-182.84628031,0.000128,2]
[396532332,1765040139968,-177.90578323,0.000128,2]
[396532334,1765040144496,-176.80672308,0.000128,2]
[396532335,1765040147021,-297.67702424,0.000128,2]
[396532337,1765040150405,-341.03947196,0.000128,2]
[396532338,1765040153057,-392.31504703,0.000128,2]
[396532339,1765040155308,-207.95261956,0.000128,2]
[396532340,1765040158614,-148.57288071,0.000128,2]
[396532341,1765040158638,-181.23910209,0.00012834,2]
[396532342,1765040160898,-191.4412621,0.00012834,2]
[396532343,1765040162238,-176.82166749,0.00012834,2]
[396532344,1765040164257,-199.18539537,0.00012834,2]
[396532346,1765040165905,-300.0,0.00012834,2]
[396532347,1765040169662,-176.17413539,0.00012834,2]
[396532348,1765040171041,-255.11039067,0.00012834,2]
[396532350,1765040173600,-151.26063439,0.00012834,2]
[396532351,1765040173628,-197.19438467,0.00012866,2]
[396532352,1765040175197,-52.80561533,0.00012866,2]
[396532353,1765040175218,-405.63524423,0.00012899,2]
[396532354,1765040175240,-111.82365773,0.00012899,2]
[396532356,1765040176619,-188.17634227,0.00012899,2]
[396532357,1765040176648,-61.66365773,0.000129,2]
[396532358,1765040178834,-363.11935683,0.000129,2]
[396532359,1765040180959,-240.1310733,0.000129,2]
[396532363,1765040182449,-244.52844755,0.000129,2]
[396532364,1765040184557,-339.51089884,0.000129,2]
[396532366,1765040188232,-227.50151243,0.00012835,2]
[396532367,1765040191314,-194.35665246,0.00012835,2]
[396532368,1765040192489,-275.79185815,0.00012835,2]
[396532369,1765040193937,-471.42761652,0.00012835,2]
[396532371,1765040197053,-192.32018216,0.000128,2]
[396532372,1765040198634,-24.39807714,0.000128,2]
[396532373,1765040198664,-146.50475644,0.00012835,2]
[396532374,1765040198698,-4.15336966,0.000129,2]
[396532375,1765040201101,-177.2784073,0.000129,2]
[396532376,1765040203892,-187.32357407,0.000129,2]
[396532377,1765040205393,-499.07298463,0.000129,2]
[396532378,1765040207831,-451.94737082,0.000129,2]
[396532379,1765040209116,-10000.01,0.000129,2]
[396532380,1765040209315,-10000.01,0.000129,2]
[396532381,1765040209456,-10000.01,0.000129,2]
[396532382,1765040209553,-10000.01,0.000129,2]
[396532383,1765040209663,-10000.01,0.000129,2]
[396532384,1765040209795,-10000.01,0.000129,2]
[396532385,1765040209904,-300.0,0.000129,2]
[396532386,1765040209939,-10000.01,0.000129,2]
[396532387,1765040210029,-10000.01,0.000129,2]
[396532388,1765040210196,-10000.01,0.000129,2]
[396532390,1765040212479,-224.44765567,0.000129,2]
[396532391,1765040212642,-10000.01,0.000129,2]
[396532392,1765040214783,-372.8609399,0.000129,2]
[396532393,1765040216253,-200.0,0.000129,2]
[396532395,1765040218467,-152.87084986,0.000129,2]
[396532396,1765040220080,-722.35562766,0.000129,2]
[396532397,1765040222271,-237.47725156,0.00012899,2]
[396532398,1765040224431,-62.52274844,0.00012899,2]
[396532399,1765040224454,-108.13029299,0.00012899,2]
[396532400,1765040225968,-41.86970701,0.00012899,2]
[396532401,1765040225997,-263.77342414,0.000129,2]
[396532402,1765040227542,-219.80371756,0.000129,2]
[396532403,1765040230218,-325.75017195,0.000129,2]
[396532404,1765040231800,-477.0899527,0.000129,2]
[396532406,1765040233323,-153.67,0.000129,2]
[396532407,1765040236290,-234.86319066,0.000129,2]
[396532408,1765040237849,-426.93432986,0.000129,2]
[396532412,1765040241142,-170.64038238,0.00012899,2]
[396532414,1765040243191,-228.14774148,0.00012899,2]
[396532415,1765040244214,-101.21187614,0.00012899,2]
[396532416,1765040244249,-52.45812386,0.00012899,2]
[396532417,1765040245928,-166.90941815,0.00012899,2]
[396532418,1765040248722,-209.96931951,0.00012899,2]
[396532420,1765040250291,-70.66313848,0.00012899,2]
[396532421,1765040250319,-184.77387785,0.00012899,2]
[396532422,1765040252898,-158.11192561,0.00012899,2]
[396532423,1765040254901,-157.11419654,0.00012899,2]
[396532424,1765040254928,-143.57169337,0.00012899,2]
[396532426,1765040256925,-356.42830663,0.00012899,2]
[396532427,1765040256953,-33.01794675,0.00012899,2]
[396532428,1765040258493,-165.34225733,0.00012899,2]
[396532429,1765040260539,-240.39871948,0.00012899,2]
[396532431,1765040265398,-61.24107644,0.00012899,2]
[396532432,1765040265427,-131.67773686,0.00012899,2]
[396532433,1765040266958,-157.96758673,0.00012899,2]
[396532434,1765040269607,-271.24102465,0.00012899,2]
[396532435,1765040269634,-42.27039407,0.00012899,2]
[396532436,1765040271122,-306.95217498,0.00012899,2]
[396532438,1765040273294,-150.77743095,0.00012899,2]
[396532439,1765040273322,-131.31970172,0.00012899,2]
[396532440,1765040275913,-257.63706614,0.00012899,2]
[396532441,1765040278099,-255.28695729,0.00012898,2]
[396532442,1765040279671,-341.18446876,0.00012898,2]
[396532443,1765040279701,2930.5,0.00025,120]
[396532445,1765040281996,-157.26744825,0.00012898,2]
[396532446,1765040283788,-300.0,0.00012898,2]
[396532447,1765040285195,-146.2611257,0.00012898,2]
[396532448,1765040285223,-111.04323214,0.00012899,2]
[396532449,1765040285252,-100.52143316,0.00012899,2]
[396532450,1765040287420,-170.27511459,0.00012899,2]
[396532452,1765040289606,-229.20345225,0.00012899,2]
[396532453,1765040289633,-116.29137835,0.00012899,2]
[396532454,1765040291938,-158.01068952,0.00012899,2]
[396532456,1765040298042,-225.69793213,0.00012899,2]
[396532457,1765040298070,-64.7118749,0.00012899,2]
[396532458,1765040300653,-154.5051694,0.00012899,2]
[396532462,1765040302692,-211.61442592,0.00012899,2]
[396532463,1765040304667,-69.16852978,0.00012899,2]
[396532464,1765040304693,-282.42830162,0.00012899,2]
[396532466,1765040306699,-233.80626305,0.000128,2]
[396532479,1765040310347,-167.26176925,0.000128,2]
[396532480,1765040313396,-202.47554965,0.000128,2]
[396532481,1765040316200,-199.94850002,0.000128,2]
[396532482,1765040317722,-190.71049722,0.000128,2]
[396532483,1765040319680,-182.95225485,0.000128,2]
[396532484,1765040321839,-339.31090162,0.000128,2]
[396532485,1765040324602,-363.90371087,0.000128,2]
[396532490,1765040326443,-180.16566573,0.000128,2]
[396532492,1765040328175,-264.89030231,0.000128,2]
[396532496,1765040331443,-273.06277592,0.000128,2]
[396532499,1765040332840,-335.12932025,0.000128,2]
[396532500,1765040335297,-188.98395667,0.000128,2]
[396532504,1765040336844,-589.524522,0.000128,2]
[396532505,1765040339654,-69.519581,0.000128,2]
[396532506,1765040339675,-263.57839106,0.000128,2]
[396532507,1765040341714,-570.10975814,0.000128,2]
[396532509,1765040344458,-411.92500695,0.000128,2]
[396532511,1765040347143,-250.77405588,0.000128,2]
[396532512,1765040349152,-1003.61278797,0.000128,2]
[396532513,1765040349188,-414.97907471,0.000128,2]
[396532514,1765040349219,-2447.10243979,0.00012899,2]
[396532515,1765040349256,-217.57169838,0.00012899,2]
[396532516,1765040349291,-500.0,0.00012899,2]
[396532517,1765040349324,-164.14771667,0.00012899,2]
[396532518,1765040349353,-139.79009616,0.00012899,2]
[396532519,1765040349515,-225.60237264,0.00012899,2]
[396532520,1765040351008,-374.85984351,0.00012899,2]
[396532521,1765040352364,-125.14015649,0.00012899,2]
[396532522,1765040352397,-290.40980703,0.00012899,2]
[396532523,1765040352454,-9168.91007296,0.000129,2]
[396532525,1765040353573,-225.8981609,0.000129,2]
[396532526,1765040357252,-209.64697373,0.000129,2]
[396532528,1765040359416,-240.05034171,0.000129,2]
[396532529,1765040361103,-356.9660211,0.000129,2]
[396532538,1765040363522,-168.79,0.000129,2]
[396532540,1765040364952,-193.61000017,0.000129,2]
[396532545,1765040366529,174.781868,0.00012,2]
[396532546,1765040366890,-250.0,0.000129,2]
[396532548,1765040369370,-274.7876556,0.000129,2]
[396532552,1765040372143,-161.32000017,0.000129,2]
[396532555,1765040374004,-174.0,0.000129,2]
[396532556,1765040376211,-170.58350737,0.000129,2]
[396532560,1765040378349,-214.13623566,0.000129,2]
[396532563,1765040383779,-308.88724107,0.000129,2]
[396532566,1765040386363,-210.93645196,0.000129,2]
[396532567,1765040388021,-303.55737173,0.000129,2]
[396532568,1765040390086,-182.73267266,0.000129,2]
[396532569,1765040391687,-300.0,0.000129,2]
[396532571,1765040394296,-251.54634236,0.000129,2]
[396532572,1765040396485,-310.33644622,0.000129,2]
[396532576,1765040399141,-182.54369777,0.000129,2]
[396532579,1765040400692,-231.8471339,0.000129,2]
[396532584,1765040405026,-220.38310545,0.00012899,2]
[396532585,1765040407215,-397.17306172,0.00012899,2]
[396532589,1765040410392,-321.53,0.00012899,2]
[396532590,1765040415038,-168.35757804,0.00012899,2]
[396532592,1765040416242,-92.55625479,0.00012899,2]
[396532593,1765040416265,-66.8229221,0.00012899,2]
[396532594,1765040417723,-233.1770779,0.00012899,2]
[396532595,1765040417746,-20.85474079,0.00012899,2]
[396532601,1765040420901,-129.14525921,0.00012899,2]
[396532602,1765040420930,-315.4971029,0.000129,2]
[396532607,1765040422298,-378.15031131,0.000129,2]
[396532609,1765040423923,-429.40019948,0.000129,2]
[396532610,1765040426066,-299.0037605,0.000129,2]
[396532611,1765040429595,-222.30237251,0.000129,2]
[396532614,1765040431602,-163.39829817,0.000129,2]
[396532615,1765040433608,-246.88643133,0.000129,2]
[396532616,1765040436394,-220.86466532,0.000129,2]
[396532617,1765040437844,-161.32,0.000129,2]
[396532624,1765040439836,-233.17537175,0.000129,2]
[396532681,1765040444003,-163.86219514,0.000129,2]
[396532682,1765040447402,-322.78960135,0.000129,2]
[396532684,1765040451290,-324.6557755,0.000129,2]
[396532686,1765040454040,-232.31,0.000129,2]
[396532687,1765040455495,-397.23151695,0.000129,2]
[396532733,1765040460894,-207.65020721,0.000129,2]
[396532734,1765040463912,-396.24953827,0.000129,2]
[396532735,1765040466058,-335.42669352,0.000129,2]
[396532737,1765040468707,-156.96332126,0.000129,2]
[396532738,1765040470353,-429.15678669,0.000129,2]
[396532742,1765040472870,-217.98138319,0.000128,2]
[396532747,1765040474393,-337.30969251,0.000128,2]
[396532748,1765040477688,-674.38016308,0.000128,2]
[396532749,1765040479217,-172.01323948,0.000128,2]
[396532751,1765040480766,-166.66,0.000128,2]
[396532752,1765040482225,-189.06448687,0.000128,2]
[396532753,1765040484246,-329.78465635,0.000128,2]
[396532754,1765040486878,-278.50747738,0.000128,2]
[396532755,1765040488645,-134.29890114,0.000128,2]
[396532756,1765040488667,-151.0,0.00012897,2]
[396532757,1765040488690,-151.0,0.00012897,2]
[396532758,1765040488717,-94.50223232,0.000129,2]
[396532759,1765040490114,-300.0,0.000129,2]
[396532760,1765040493690,4971.116,0.00012642,2]
[396532761,1765040493770,169.645,0.00012642,2]
[396532762,1765040493993,-174.77087134,0.000129,2]
[396532764,1765040498471,-153.58826066,0.000129,2]
[396532773,1765040516993,-758.86819842,0.000128,2]
[396532776,1765040519144,-300.0,0.000128,2]
[396532777,1765040521434,-177.63303833,0.000128,2]
[396532778,1765040522892,-309.2407181,0.000128,2]
[396532779,1765040522954,328.359132,0.00012736,2]
[396532780,1765040524190,-195.08025111,0.000128,2]
[396532781,1765040527918,-207.25287225,0.000128,2]
[396532782,1765040530282,-306.83557542,0.000128,2]
[396532783,1765040533284,-368.72567274,0.000128,2]
[396532784,1765040535427,-414.55378881,0.000128,2]
[396532787,1765040539054,-329.60605259,0.000128,2]
[396532789,1765040540145,-729.46878789,0.000128,2]
[396532790,1765040540175,-2243.28164541,0.000128,2]
[396532791,1765040540259,-4054.5091334,0.000128,2]
[396532792,1765040541160,-158.64459225,0.000128,2]
[396532796,1765040542728,-43.41719163,0.000128,2]
[396532797,1765040542750,-222.05821022,0.000128,2]
[396532798,1765040542985,-1006.47189628,0.000128,2]
[396532799,1765040543017,-252.46156236,0.00012846,2]
[396532800,1765040543048,-207.4,0.00012892,2]
[396532801,1765040543078,-200.0,0.00012892,2]
[396532802,1765040543109,-500.0,0.00012892,2]
[396532803,1765040543140,-500.0,0.00012892,2]
[396532804,1765040543171,-500.0,0.00012892,2]
[396532805,1765040543201,-500.0,0.00012892,2]
[396532806,1765040543233,-300.0,0.00012899,2]
[396532807,1765040543584,-500.0,0.00012892,2]
[396532808,1765040543596,-1567.34308272,0.000129,2]
[396532811,1765040545066,-250.3799962,0.00012892,2]
[396532812,1765040545161,-249.6200038,0.00012892,2]
[396532813,1765040545198,-301.39878914,0.00012892,2]
[396532814,1765040545321,-8897.97241412,0.000129,2]
[396532815,1765040545411,-10000.01,0.000129,2]
[396532816,1765040545608,-10000.01,0.000129,2]
[396532817,1765040545653,-10000.01,0.000129,2]
[396532818,1765040545782,-10000.01,0.000129,2]
[396532821,1765040545820,-10000.01,0.000129,2]
[396532824,1765040552075,-296.44174511,0.000128,2]
[396532825,1765040552104,-1141.85373656,0.000128,2]
[396532826,1765040552134,-500.0,0.00012892,2]
[396532827,1765040552371,-6123.41903666,0.000129,2]
[396532828,1765040552457,-10000.01,0.000129,2]
[396532829,1765040552501,-351.5968314,0.000128,2]
[396532830,1765040552510,-9648.4131686,0.000129,2]
[396532831,1765040553199,-10000.01,0.000129,2]
[396532832,1765040553576,-10000.01,0.000129,2]
[396532833,1765040553624,-300.0,0.000129,2]
[396532834,1765040553666,-10000.01,0.000129,2]
[396532835,1765040553690,-10000.01,0.000129,2]
[396532836,1765040553722,-10000.01,0.000129,2]
[396532837,1765040555870,-200.0,0.00012892,2]
[396532838,1765040555911,-9600.01,0.000129,2]
[396532839,1765040556094,-10000.01,0.000129,2]
[396532840,1765040556200,-10000.01,0.000129,2]
[396532841,1765040556320,-10000.01,0.000129,2]
[396532842,1765040556764,-10000.01,0.000129,2]
[396532843,1765040556817,-10000.01,0.000129,2]
[396532846,1765040557025,-10000.01,0.000129,2]
[396532847,1765040557123,-10000.01,0.000129,2]
[396532848,1765040557321,-10000.01,0.000129,2]
[396532849,1765040557593,-10000.01,0.000129,2]
[396532850,1765040557717,-10000.01,0.000129,2]
[396532851,1765040557924,-10000.01,0.000129,2]
[396532852,1765040557965,-10000.01,0.000129,2]
[396532853,1765040558049,-10000.01,0.000129,2]
[396532854,1765040558150,-10000.01,0.000129,2]
[396532857,1765040566556,-10000.01,0.000129,2]
[396532858,1765040566792,-10000.01,0.000129,2]
[396532859,1765040567049,-10000.01,0.000129,2]
[396532869,1765040592005,-221.24149237,0.000128,2]
[396532871,1765040596490,-199.99670706,0.0001285,2]
[396532893,1765040637045,-317.37799595,0.000128,2]
[396532894,1765040638752,-162.175406,0.000128,2]
[396532895,1765040640799,-199.94850002,0.00012799,2]
[396532896,1765040640828,-12.29495611,0.000128,2]
[396532898,1765040643894,-170.06483356,0.000128,2]
[396532899,1765040645667,-438.81961314,0.000128,2]
[396532900,1765040647244,-227.87146299,0.000128,2]
[396532908,1765040652209,-236.42907874,0.000128,2]
[396532910,1765040653912,-277.90407993,0.000128,2]
[396532912,1765040655374,-457.44450072,0.000128,2]
[396532918,1765040656887,-360.64342127,0.000128,2]
[396532923,1765040660056,-404.26656608,0.000128,2]
[396532924,1765040661079,-204.36985407,0.000128,2]
[396532925,1765040663749,-229.60371198,0.000128,2]
[396532926,1765040666339,-297.31035049,0.000128,2]
[396532930,1765040670948,-233.32285711,0.000128,2]
[396532931,1765040673201,-250.0,0.000128,2]
[396532932,1765040675727,-178.19703209,0.000128,2]
[396532933,1765040676060,1500.0,0.00022,30]
[396532936,1765040677771,-425.75917977,0.000128,2]
[396532937,1765040677798,-322.91751605,0.000128,2]
[396532938,1765040679215,-175.70786457,0.000128,2]
[396532940,1765040681847,-282.32001828,0.000128,2]